Cogmind - Beta 12 @@@ ROGUE MODE // 2023.03.18 @ 14:16:04 Player: ArabianSandBoa Result: Destroyed by H-55 Commando with Gauss Rifle Performance ------------- Evolutions (0) 0 Regions Visited (3) 600 Robots Destroyed (39) 195 Value Destroyed (657) 657 Prototype IDs (27) 540 Alien Tech Used (0) 0 Bonus (797) 797 TOTAL SCORE: 2789 Bonus ------- Follower Combat Kills 503 Aligned with FarCom 300 Friendly Fire -6 Cogmind --------- Core Integrity 0/250 Matter 300/300 Energy 100/100 System Corruption 0% Temperature Cool (0) Movement Rolling (130) Ox2 Location -10/Exiles Parts ------- > --- POWER (1) -------- (None) > --- PROPULSION (2) --- Compact Wheel > --- UTILITY (2) ------ High-capacity Storage Unit Light Armor Plating > --- WEAPON (2) ------- Light Assault Rifle Light Assault Rifle > --- INVENTORY (20) --- Ion Engine Light Ion Engine Reinforced Ion Engine Light Treads Light Treads Improved Heat Sink High-capacity Storage Unit Humpback Humpback Modified TNC Propulsion Shielding EM Pulse Gun Medium Laser Light Assault Rifle Light Assault Rifle Light Assault Rifle Light Assault Rifle Light Cannon Peak State ------------ > --- POWER ------------ (None) > --- PROPULSION ------- Compact Wheel > --- UTILITY ---------- High-capacity Storage Unit Targeting Computer > --- WEAPON ----------- Light Assault Rifle Light Assault Rifle > --- INVENTORY -------- Ion Engine Light Ion Engine Light Ion Engine Flying Fortress v7 Improved Heat Sink Medium Storage Unit High-capacity Storage Unit Sensor Array Propulsion Shielding Propulsion Shielding EM Pulse Gun Medium Laser Light Assault Rifle Light Assault Rifle Light Assault Rifle Light Assault Rifle Light Cannon [Rating: 10] Favorites ----------- Power Ion Engine Engine Ion Engine Propulsion Light Treads Treads Light Treads Leg Aluminum Leg Wheel Compact Wheel Utility High-capacity Storage Unit Device Heat Sink Storage High-capacity Storage Unit Processor Targeting Computer Protection Light Armor Plating Weapon Medium Laser Energy Gun Medium Laser Energy Cannon Beam Cannon Ballistic Gun Light Assault Rifle Build | -11 -10 -10 -10 ------- Run | Jun Mat Min Exi Slots Evolved . | . . . . Power . | . . . . Propulsion . | . . . . Utility . | . . . . Weapon . | . . . . Parts Attached 23 | 3 14 5 1 Power 1 | . 1 . . Engine 1 | . 1 . . Core . | . . . . Reactor . | . . . . Propulsion 8 | 3 4 1 . Treads 6 | 2 4 . . Leg . | . . . . Wheel 2 | 1 . 1 . Hover . | . . . . Flight . | . . . . Utility 7 | . 5 1 1 Device 3 | . 3 . . Storage 2 | . 2 . . Processor 1 | . . 1 . Hackware . | . . . . Protection 1 | . . . 1 Artifact . | . . . . Weapon 7 | . 4 3 . Energy Gun 3 | . 3 . . Energy Cannon 1 | . 1 . . Ballistic Gun 3 | . . 3 . Ballistic Cannon . | . . . . Launcher . | . . . . Special Weapon . | . . . . Impact Weapon . | . . . . Slashing Weapon . | . . . . Piercing Weapon . | . . . . Special Melee Weapon . | . . . . Unidentified Prototypes . | . . . . Parts Lost 6 | . 1 5 . Power 2 | . 1 1 . Propulsion 2 | . . 2 . Utility . | . . . . Weapon 2 | . . 2 . Highest Loss Streak 4 | . 1 4 . To Critical Strikes 1 | . . 1 . Average Slot Usage (%) 88 | . 97 82 71 Engine 8 | . 12 5 . Treads 18 | . 27 11 . Wheel 4 | . . 8 14 Device 9 | . 12 7 . Storage 14 | . 14 14 14 Processor 3 | . . 6 10 Energy Gun 15 | . 27 1 . Ballistic Gun 12 | . . 26 28 Naked Turns . | . . . . Heaviest Build 50 | 13 50 50 45 Greatest Support 40 | 40 40 40 16 Greatest Overweight (x) 3 | . 3 3 2 Average Overweight (x) 1 | . . 1 2 Largest Inventory Capacity 20 | 8 20 20 20 Average Capacity 16 | 8 13 20 20 Most Carried 20 | 6 16 20 20 Average Carried 13 | 6 10 18 17 Final Capacity 20 | 8 20 20 20 Final Carried 20 | 6 16 19 20 Class Distribution -------------------- 100% | Mutant Dominant Class ---------------- Mutant | -10/Materials Mutant | -10/Mines Mutant | -10/Exiles Resources | -11 -10 -10 -10 ----------- Run | Jun Mat Min Exi Matter Collected 528 | 230 140 118 40 Remotely . | . . . . Salvage Created 1030 | . 872 158 . Parts 64 | . 49 15 . Haulers Intercepted 1 | . 1 . . Recyclers Shooed 3 | . 2 1 . Parts Field Recycled . | . . . . Retrieved Matter . | . . . . Parts Self-Destructed . | . . . . Prevented . | . . . . Kills | -11 -10 -10 -10 ------- Run | Jun Mat Min Exi Combat Hostiles Destroyed 27 | . 19 8 . Guns 26 | . 18 8 . Classes Destroyed 8 | . 8 . . Worker 4 | . 4 . . Builder 2 | . 2 . . Hauler 1 | . 1 . . Recycler 1 | . 1 . . Operator 1 | . 1 . . Watcher 3 | . 3 . . Swarmer 15 | . 9 6 . Grunt 12 | . 10 2 . Best Kill Streak 4 | . 4 3 . Combat Bots Only 3 | . 3 3 . Max Kills in Single Turn 1 | . 1 1 . Gunslinging . | . . . . Exploded . | . . . . Melee . | . . . . Uniques/NPCs Destroyed . | . . . . Combat | -11 -10 -10 -10 -------- Run | Jun Mat Min Exi Damage Taken 1208 | . 556 475 177 Core 251 | . 73 84 94 Absorbed by Shields . | . . . . Core Remaining (%) 100 | 100 . . . Volleys Fired 118 | . 75 28 15 Largest 2 | . 2 2 2 Hottest 110 | . 110 100 40 Shots Fired 227 | . 141 56 30 Gun 224 | . 138 56 30 Cannon 3 | . 3 . . Launcher . | . . . . Special . | . . . . Kinetic 79 | . . 49 30 Thermal 148 | . 141 7 . Explosive . | . . . . Electromagnetic . | . . . . Robot Hit Streak 35 | . 35 6 4 Robot Miss Streak 4 | . 4 2 2 Penetration Max . | . . . . Secondary Targets 3 | . 2 1 . Max Gunslinging Chain 1 | . 1 1 . Shots Hit Robots 165 | . 106 38 21 Core Hits 68 | . 45 16 7 Critical Kills . | . . . . Critical Parts Destroyed . | . . . . Critical Strikes 16 | . 16 . . Burn 16 | . 16 . . Melee Attacks . | . . . . Impact . | . . . . Slashing . | . . . . Piercing . | . . . . Sneak Attacks . | . . . . Combat Hostiles . | . . . . Follow-up Attacks . | . . . . Damage Inflicted 1932 | . 1379 395 158 Guns 1898 | . 1345 395 158 Cannons 34 | . 34 . . Explosions . | . . . . Melee . | . . . . Ramming . | . . . . Kinetic 499 | . . 341 158 Thermal 1433 | . 1379 54 . Explosive . | . . . . Electromagnetic . | . . . . Impact . | . . . . Slashing . | . . . . Piercing . | . . . . Highest Corruption . | . . . . Average Corruption . | . . . . Corruption Purged . | . . . . Corruption Blocked . | . . . . Overload Shots . | . . . . Overflow Damage 10 | . 10 . . Projectiles 10 | . 10 . . Explosions . | . . . . Melee . | . . . . Knockbacks . | . . . . Impact . | . . . . Kinetic . | . . . . Secondary . | . . . . Self-Inflicted Damage . | . . . . Shots . | . . . . Rammed . | . . . . Targets Rammed . | . . . . Kicked . | . . . . Crushed . | . . . . Highest Temperature 252 | . 252 23 . Average Temperature 36 | . 36 10 . Received Heat Transfer 366 | . 180 174 12 Effects 2 | . 2 . . Interference 2 | . 2 . . Siege Activations . | . . . . Robots Corrupted . | . . . . Combat Hostiles . | . . . . Parts Fried . | . . . . Impact Corruptions . | . . . . Robots Melted 1 | . 1 . . Combat Hostiles 1 | . 1 . . Parts Melted 15 | . 15 . . Heat Transferred 5256 | . 5108 148 . Parts Sabotaged . | . . . . Parts Stolen . | . . . . Parts Stripped . | . . . . Power Chain Reactions . | . . . . Missiles Intercepted . | . . . . Alert | -11 -10 -10 -10 ------- Run | Jun Mat Min Exi Peak Influence 360 | . 360 264 . Initial 109 | . . 109 . Average 188 | . 195 174 . Maximum Alert Level 1 | . 1 1 . Low Security (%) 50 | 100 51 46 . Level 1 49 | . 48 53 . Level 2 . | . . . . Level 3 . | . . . . Level 4 . | . . . . Level 5 . | . . . . High Security . | . . . . Max Security . | . . . . Squads Dispatched 7 | . 7 . . Investigation 6 | . 6 . . Extermination . | . . . . Reinforcement 1 | . 1 . . Assault . | . . . . Garrison . | . . . . Intercept . | . . . . Searches Triggered . | . . . . Construction Impeded . | . . . . Haulers Reinforced . | . . . . Active Scanning Responses . | . . . . Cargo Convoy Interrupts . | . . . . Stealth | -11 -10 -10 -10 --------- Run | Jun Mat Min Exi Distress Signals 5 | . 5 . . Communications Jammed . | . . . . Distress Signals . | . . . . Times Spotted 50 | . 29 8 13 Peak Tracking Total 5 | . 4 3 5 Tactical Retreats . | . . . . Traps | -11 -10 -10 -10 ------- Run | Jun Mat Min Exi Traps Triggered 5 | . 5 . . Indirectly . | . . . . Trap Hack Attempts . | . . . . Triggered . | . . . . Disarmed . | . . . . Reprogrammed . | . . . . Reused . | . . . . Traps Extracted . | . . . . Installed . | . . . . Triggered . | . . . . Exploded 1 | . . . 1 Machines | -11 -10 -10 -10 ---------- Run | Jun Mat Min Exi Machines Disabled . | . . . . Max in Single Turn . | . . . . Machines Repaired . | . . . . Machines Sabotaged . | . . . . Overloaded Fab Kills . | . . . . Hacking | -11 -10 -10 -10 --------- Run | Jun Mat Min Exi Machines Accessed 10 | . 9 . 1 Terminals 7 | . 7 . . Fabricators . | . . . . Repair Stations . | . . . . Recycling Units 2 | . 2 . . Scanalyzers . | . . . . Garrison Access . | . . . . Total Hacks 29 | . 28 . 1 Successful 22 | . 21 . 1 Failed 6 | . 6 . . Catastrophic . | . . . . Database Lockouts 1 | . 1 . . Manual 16 | . 15 . 1 Terminals 22 | . 22 . . Fabricators . | . . . . Repair Stations . | . . . . Recycling Units 6 | . 6 . . Scanalyzers . | . . . . Garrison Access . | . . . . Terminal Hacks 12 | . 11 . 1 Robot Analysis 3 | . 3 . . Prototype ID Bank 2 | . 2 . . Emergency Access Points 1 | . 1 . . Hauler Manifests 2 | . 2 . . Registered Components 1 | . 1 . . Zone Layout 2 | . 2 . . EX-Prototype ID Bank 1 | . . . 1 Fabricator Hacks . | . . . . Repair Station Hacks . | . . . . Recycling Unit Hacks 2 | . 2 . . Report Inventory 2 | . 2 . . Scanalyzer . | . . . . Garrison Access Hacks . | . . . . Unauthorized Hacks 8 | . 8 . . Terminals 4 | . 4 . . Botnet 4 | . 4 . . Fabricators . | . . . . Repair Stations . | . . . . Recycling Units 4 | . 4 . . Reject 1 | . 1 . . Mask 1 | . 1 . . Tunnel 2 | . 2 . . Scanalyzers . | . . . . Garrison Access . | . . . . Data Cores Recovered . | . . . . Used . | . . . . Hacking Detections 8 | . 8 . . Full Trace Events 2 | . 2 . . Feedback Events . | . . . . Feedback Blocked . | . . . . Robot Schematics Acquired . | . . . . Robots Built . | . . . . Authchips . | . . . . Time . | . . . . Total Robot Build Rating . | . . . . Part Schematics Acquired . | . . . . Parts Built . | . . . . Authchips . | . . . . Time . | . . . . Total Part Build Rating . | . . . . Parts Repaired . | . . . . Time . | . . . . Parts Recycled . | . . . . Recycled Matter . | . . . . Retrieved Matter . | . . . . Retrieved Components . | . . . . Parts Scanalyzed . | . . . . Part Schematics Acquired . | . . . . Parts Damaged . | . . . . Bothacking | -11 -10 -10 -10 ------------ Run | Jun Mat Min Exi Used RIF Installer . | . . . . Robots Hacked . | . . . . Non-combat . | . . . . Combat . | . . . . Robot Hacks Applied . | . . . . Relay Couplers Released . | . . . . Fabnet Peak Effective % . | . . . . Robots Rewired . | . . . . Allies Hacked . | . . . . Hacks Repelled . | . . . . Allies | -11 -10 -10 -10 -------- Run | Jun Mat Min Exi Total Allies 2 | . . 2 . Largest Group 2 | . . 2 2 Highest-Rated Group 41 | . . 41 41 Highest-Rated Ally 31 | . . 31 31 Total Orders . | . . . . Ally Attacks 57 | . . . 57 Total Damage 3078 | . . . 3078 Kills 22 | . . . 22 Allies Corrupted . | . . . . Allies Melted . | . . . . Turrets Deployed 3 | . . . 3 Intel | -11 -10 -10 -10 ------- Run | Jun Mat Min Exi Robot Analysis Total 3 | . 3 . . Derelict Logs Recovered 2 | . . 2 . Drone Launches . | . . . . Drone Recoveries . | . . . . Exploration | -11 -10 -10 -10 ------------- Run | Jun Mat Min Exi Turns Passed 2776 | 9 1559 635 573 Spaces Moved 1249 | 3 563 321 362 Core 1 | . 1 . . Treads 643 | 1 562 80 . Legs 2 | 2 . . . Wheels 603 | . . 241 362 Hover . | . . . . Flight . | . . . . Fastest Speed 120 | 120 160 130 130 Average Speed 167 | 133 198 157 130 Slowest Speed 240 | 160 240 240 130 Overloaded Moves . | . . . . Propulsion Burnouts . | . . . . Robots Hopped . | . . . . Cave-ins Triggered . | . . . . Exploration Rate (%) 58 | 2 96 79 58 Regions Visited 3 Branch Regions 2 Pre-discovered Areas 2 | . 2 . . Known Exits Taken . | . . . . Unknown Exits Taken 3 | 1 1 1 . Scrap Searched 1 | . . 1 . Spaces Dug . | . . . . Terrain Destroyed . | . . . . Melee . | . . . . Projectile . | . . . . AOE . | . . . . Terrain Rammed . | . . . . Walls Destroyed . | . . . . Machines Disabled . | . . . . Actions | -11 -10 -10 -10 --------- Run | Jun Mat Min Exi Total 1718 | 7 866 399 446 Wait 278 | 2 190 40 46 Move 1246 | 2 562 320 362 Hop . | . . . . Pick Up 33 | . 17 6 10 Fast Attach 5 | . 4 . 1 Attach 6 | . 3 3 . Detach . | . . . . Swap 12 | 3 7 2 . Drop 20 | . 8 . 12 Fire 118 | . 75 28 15 Melee . | . . . . Ram . | . . . . Kick . | . . . . Crush . | . . . . Escape Stasis . | . . . . Rewire . | . . . . Trap . | . . . . Miscellaneous . | . . . . Route ------- -11/Junkyard -10/Materials (discovered 5 exits: [*Mat x3] / [*Min x2]) -10/Mines (discovered 3 exits: [*Mat x2] / *Exi) -10/Exiles History --------- Turn | Location | Event 1 | -11/Junkyard | Discovered new exit (range 0) 10 | -11/Junkyard | Entered Materials 220 | -10/Materials | Discovered new exit (range 7) 320 | -10/Materials | Build established: Mutant 406 | -10/Materials | Discovered new exit (range 13) 565 | -10/Materials | Discovered new exit (range 12) 884 | -10/Materials | Discovered new exit (range 16) 1106 | -10/Materials | Central database locked down 1206 | -10/Materials | Discovered new exit (range 11) 1569 | -10/Materials | Entered Mines 1614 | -10/Mines | Discovered new exit (range 13) 1832 | -10/Mines | Core integrity fell below 50% 1869 | -10/Mines | Lost 4 parts (1p2n1w) 1942 | -10/Mines | Learned Materials terminal intel 1964 | -10/Mines | Learned Materials emergency access door positions 2167 | -10/Mines | Discovered new exit (range 10) 2198 | -10/Mines | Deemed a non-threat by the Exiles lab entrance 2198 | -10/Mines | Discovered new exit (range 5) 2204 | -10/Mines | Entered Exiles 2204 | -10/Exiles | Accompanied by 2 allies 2234 | -10/Exiles | Led the pair of lost Derelicts to a safe place 2243 | -10/Exiles | Met 8R-AWN 2265 | -10/Exiles | Met EX-HEX 2303 | -10/Exiles | Met EX-BIN 2317 | -10/Exiles | Aligned with FarCom system 2319 | -10/Exiles | Given EX-Vault access code 2348 | -10/Exiles | Opened EX-Vault 2356 | -10/Exiles | Found Deploy-a-Sentry 2359 | -10/Exiles | Found Deploy-a-Sentry 2361 | -10/Exiles | Found Deploy-a-Sentry 2392 | -10/Exiles | Warned to stay clear of 0b10 Research branches 2404 | -10/Exiles | Exiles lab attacked by MAIN.C 2421 | -10/Exiles | DAS Turret deployed 2424 | -10/Exiles | DAS Turret deployed 2435 | -10/Exiles | DAS Turret deployed 2496 | -10/Exiles | Found Flying Fortress v7 2500 | -10/Exiles | Found Modified TNC 2613 | -10/Exiles | Core integrity fell below 20% 2777 | -10/Exiles | Destroyed by H-55 Commando with Gauss Rifle Last Messages --------------- 02657_ Acquired 9 matter. 02658_ Acquired 13 matter. 02665_ Acquired 5 matter. 02679_ Acquired 9 matter. 02700_ Slug penetrates Machine. 02700_ 1E-VSQ(z) destroyed. 02720_ Penetrated by Slug. 02729_ Slug penetrates DAS Turret. 02729_ DAS Turret suffers critical hit (Destroy). 02729_ DAS Turret destroyed. 02741_ Slug penetrates Machine. 02741_ Machine disabled. 02763_ Dropped Propulsion Shielding. 02764_ Dropped Lgt. Ion Engine. 02767_ Acquired Humpback. 02769_ Dropped Sensor Array. 02770_ Dropped Med. Storage Unit. 02770_ Acquired Humpback. 02774_ Machine disabled. 02777_ Penetrated by Slug. Map ----- +----------------------------------------------------+ | ?????????????????????????????????????????????????? | | ?????????????????????????????????????????????????? | | ?????????????????????????????????????????????????? | | ?????????????????????????????????????????????????? | | ?????????????????????????????????????????????????? | | ?????????????????????????????????????????????????? | | ?????????????????????????????????????????????????? | | ?????????????????????????????????????????????????? | | ?????????????????????????????????????????????????? | | ?????????????????????????????????????????????????? | | ?????????????????????????????????????????????????? | | ?????????????????????????????????????????????????? | | ?????????????????????????????????######??????????? | | ??????????????????? ######???????#!!! "#?????????? | | ??????????????????? #""#??????# "??????????? | | ??????????????????? ??????# "#?????????? | | ??????????????????? #????## ""#?????????? | | ??????????????????? #####" ""#?????????? | | ???????????????????? ##" ""??????????? | | ????????????????????? #"" #???????????? | | ??????????????????????? #???????????? | | ?????????????????????????# ##??????????? | | ??????????????????????????## "#??????????? | | ???????????????????########" % ###????????? | | ???????????????????# !!""""" =h ##???????? | | ???????????????????#!*! @ ###"" ######??? | | ???????????????????# ! "#?## """#### | | ???????????????????#! ##??#" | | ???????????????????# !""""""###???#"# | | ???????????????????##########?????#### | | ?????????????????????????????????????### | | ???????????????????????????????????????### | | ?????????????????????????????????????????## | | ??????????????????????????????????????????## | | ???????????????????????????????????????????##" | | ????????????????????????????????????????????#""" | | ????????????????????????????????????????????#" | | ???????????????????????????????????????????#"" | | ???????????????????????????????????????????#""" | | ???????????????????????????????????????????""" % | | ???????????????????????????????????????????""" | | ????????????????????????????????????????????" | | ????????????????????????????????????????????"" | | ???????????????????????????????????????????"" | | ????????????????????????????????????????????"" | | ?????????????????????????????????????????????""" | | ?????????????????????????????????????????????? | | ???????????????????????????????????????????????? | | ?????????????????????????????????????????????????? | | ?????????????????????????????????????????????????? | +----------------------------------------------------+ Best States ------------- Heat Dissipation 35 Energy Generation 10 Energy Capacity 250 Matter Stores 300 Matter Capacity 300 Sight Range 16 Terrain Scan Density 10 Armor Coverage 150 Evasion (%) 40 Targeting Accuracy 5 Recoil Reduction 2 Item Schematics ----------------- None Robot Schematics ------------------ None Fabricated ------------ Nothing Alien Tech Used ----------------- None Achievements -------------- None Challenges ------------ None Game ------ Seed AlloyBattleBay Manual? 0 Play Time 00:18:58 Cumulative 488.3 hours Start 2023.03.18 @ 13:51:13 End 2023.03.18 @ 14:16:04 Sessions 1 Manual Loads 0 Difficulty Rogue Special Mode None Game No. 527 Rogue 527 Adventurer 0 Explorer 0 Win Type - Total 1 Types 1/0/0/0/0/0/0/0/0 Lore% 61 Gallery% 82 Achievement% 65 Wizard Run 0 Options --------- ASCII 0 Keyboard 0 Movement Mouse Keybinds 0 Fullscreen 2 Font 24/Smallcaps Map View 76x50 Tactical HUD 1 Map Filters NONE Filters NONE Steam 1 RUN: 243e2509-e93e-4997-bb31-4d4637e43870